Cogmind - Beta 13 @@@ ROGUE MODE // 2024.04.14 @ 16:39:02 Player: LEWiKK Result: Destroyed by Y-54 Guardian with Gatling Laser Performance ------------- Evolutions (0) 0 Regions Visited (3) 600 Robots Destroyed (20) 100 Value Destroyed (712) 712 Prototype IDs (0) 0 Alien Tech Used (0) 0 Bonus (0) 0 TOTAL SCORE: 1412 Bonus ------- None Cogmind --------- Core Integrity 0/250 Matter 280/300 Energy 222/240 System Corruption 0% Temperature Warning (336) Movement Rolling (100) Location -7/Recycling Parts ------- > --- POWER (1) -------- Nuclear Core > --- PROPULSION (2) --- Armored Huge Wheel > --- UTILITY (2) ------ Armored Scrap Engine > --- WEAPON (2) ------- Riot Gun Subdweller Beam Cannon > --- INVENTORY (5) ---- Light Nuclear Core Makeshift Light Armor Plating Makeshift System Restoration Module Gauss Rifle Coil Gun Peak State ------------ > --- POWER ------------ Nuclear Core > --- PROPULSION ------- Armored Huge Wheel > --- UTILITY ---------- Armored Scrap Engine > --- WEAPON ----------- Riot Gun Subdweller Beam Cannon > --- INVENTORY -------- Light Nuclear Core Makeshift Light Armor Plating Makeshift System Restoration Module Gauss Rifle Coil Gun [Rating: 36] Favorites ----------- Power Light Ion Engine Engine Light Ion Engine Power Core Nuclear Core Propulsion Aluminum Leg Leg Aluminum Leg Wheel Armored Huge Wheel Utility Armored Scrap Engine Device Armored Scrap Engine Storage Medium Storage Unit Protection Makeshift Light Armor Plating Weapon Light Assault Rifle Energy Gun Medium Laser Energy Cannon Subdweller Beam Cannon Ballistic Gun Light Assault Rifle Launcher Grenade Launcher Build | -11 -10 -10 -7 ------- Run | Yrd Mat Sub Rec Slots Evolved . | . . . . Power . | . . . . Propulsion . | . . . . Utility . | . . . . Weapon . | . . . . Parts Attached 21 | 5 3 8 5 Power 3 | . 1 1 1 Engine 2 | . 1 1 . Core 1 | . . . 1 Reactor . | . . . . Propulsion 5 | 2 . 2 1 Treads . | . . . . Leg 4 | 2 . 2 . Wheel 1 | . . . 1 Hover . | . . . . Flight . | . . . . Utility 7 | 1 1 4 1 Device 3 | . . 2 1 Storage 2 | 1 1 . . Processor . | . . . . Hackware . | . . . . Protection 2 | . . 2 . Artifact . | . . . . Weapon 6 | 2 1 1 2 Energy Gun 2 | . 1 . 1 Energy Cannon 1 | . . . 1 Ballistic Gun 2 | 2 . . . Ballistic Cannon . | . . . . Launcher 1 | . . 1 . Special Weapon . | . . . . Impact Weapon . | . . . . Slashing Weapon . | . . . . Piercing Weapon . | . . . . Special Melee Weapon . | . . . . Unidentified Prototypes . | . . . . Parts Lost 8 | . 1 5 2 Power 1 | . . 1 . Propulsion 3 | . . 3 . Utility 1 | . . 1 . Weapon 3 | . 1 . 2 Highest Loss Streak 2 | . 1 2 2 To Critical Strikes . | . . . . Average Slot Usage (%) 78 | . 84 80 71 Engine 12 | . 14 13 8 Core 1 | . . . 5 Leg 17 | . 28 20 8 Wheel 1 | . . . 5 Device 7 | . . 6 14 Storage 3 | . 14 2 . Protection 5 | . . 9 . Energy Gun 8 | . 1 7 12 Energy Cannon 3 | . . . 12 Ballistic Gun 11 | . 26 14 1 Launcher 3 | . . 6 1 Naked Turns . | . . . . Heaviest Build 24 | 7 16 24 19 Greatest Support 28 | 20 20 20 28 Greatest Overweight (x) 2 | 1 . 2 1 Average Overweight (x) . | . . . . Largest Inventory Capacity 10 | 8 10 10 5 Average Capacity 6 | 7 9 5 5 Most Carried 8 | 7 8 8 5 Average Carried 4 | 3 4 5 4 Final Capacity 10 | 8 10 5 5 Final Carried 7 | 3 7 5 5 Scrap Engine Consumption 21 | . . . 21 Class Distribution -------------------- 100% | Mutant Dominant Class ---------------- Mutant | -10/Materials Mutant | -10/Subcaves Mutant | -7/Recycling Resources | -11 -10 -10 -7 ----------- Run | Yrd Mat Sub Rec Matter Collected 593 | 250 78 211 54 Remotely . | . . . . Salvage Created 857 | . 361 321 175 Parts 50 | . 16 26 8 Haulers Intercepted . | . . . . Recyclers Shooed 1 | . 1 . . Parts Field Recycled . | . . . . Retrieved Matter . | . . . . Parts Self-Destructed 4 | . . 4 . Prevented . | . . . . Kills | -11 -10 -10 -7 ------- Run | Yrd Mat Sub Rec Combat Hostiles Destroyed 18 | . 6 10 2 Guns 12 | . 6 6 . Cannons 2 | . . . 2 AOE 4 | . . 4 . Classes Destroyed 5 | . 2 3 . Recycler 2 | . 1 . 1 Swarmer 1 | . . 1 . Grunt 6 | . 6 . . Sentry 3 | . . 1 2 Subdweller 8 | . . 8 . Best Kill Streak 2 | . 2 2 2 Combat Bots Only 2 | . 2 2 1 Max Kills in Single Turn 1 | . 1 1 1 Gunslinging . | . . . . Exploded 1 | . . 1 . Melee . | . . . . Uniques/NPCs Destroyed . | . . . . Combat | -11 -10 -10 -7 -------- Run | Yrd Mat Sub Rec Hostile Shots Fired 177 | . 33 60 84 Missed 61 | . 5 23 33 Damage Taken 1462 | . 332 742 388 Core 252 | . 63 97 92 Absorbed by Shields . | . . . . Core Remaining (%) 100 | 100 . . . Volleys Fired 78 | . 27 40 11 Largest 2 | . 2 2 2 Hottest 130 | . 40 70 130 Shots Fired 142 | . 53 68 21 Gun 120 | . 53 56 11 Cannon 7 | . . . 7 Launcher 15 | . . 12 3 Special . | . . . . Kinetic 85 | . 53 28 4 Thermal 35 | . . 28 7 Explosive 15 | . . 12 3 Electromagnetic 7 | . . . 7 Robot Hit Streak 18 | . 13 18 6 Robot Miss Streak 4 | . 4 3 2 Penetration Max . | . . . . Secondary Targets 1 | . . 1 . Max Gunslinging Chain 1 | . . 1 . Shots Hit Robots 102 | . 37 52 13 Core Hits 47 | . 17 21 9 Critical Kills . | . . . . Critical Parts Destroyed . | . . . . Critical Strikes 2 | . . 2 . Burn 2 | . . 2 . Melee Attacks . | . . . . Impact . | . . . . Slashing . | . . . . Piercing . | . . . . Sneak Attacks . | . . . . Combat Hostiles . | . . . . Follow-up Attacks . | . . . . Damage Inflicted 1430 | . 303 803 324 Guns 883 | . 303 470 110 Cannons 168 | . . . 168 Explosions 379 | . . 333 46 Melee . | . . . . Ramming . | . . . . Kinetic 507 | . 303 184 20 Thermal 454 | . . 286 168 Explosive 379 | . . 333 46 Electromagnetic 90 | . . . 90 Impact . | . . . . Slashing . | . . . . Piercing . | . . . . Highest Corruption . | . . . . Average Corruption . | . . . . Corruption Purged . | . . . . Corruption Blocked . | . . . . Overload Shots . | . . . . Overflow Damage . | . . . . Projectiles . | . . . . Explosions . | . . . . Melee . | . . . . Knockbacks . | . . . . Impact . | . . . . Kinetic . | . . . . Secondary . | . . . . Self-Inflicted Damage . | . . . . Shots . | . . . . Rammed . | . . . . Targets Rammed . | . . . . Kicked . | . . . . Crushed . | . . . . Highest Temperature 366 | . 18 . 366 Average Temperature 68 | . 8 . 108 Received Heat Transfer 381 | . 183 78 120 Siege Activations . | . . . . Robots Corrupted . | . . . . Combat Hostiles . | . . . . Parts Fried . | . . . . Impact Corruptions . | . . . . Robots Melted . | . . . . Combat Hostiles . | . . . . Parts Melted . | . . . . Heat Transferred 1221 | . . 999 222 Parts Sabotaged . | . . . . Parts Stolen . | . . . . Parts Stripped . | . . . . Power Chain Reactions . | . . . . Alert | -11 -10 -10 -7 ------- Run | Yrd Mat Sub Rec Peak Influence 204 | . 204 . 82 Initial 14 | . . . 14 Average 48 | . 85 . 35 Maximum Alert Level 1 | . 1 . . Low Security (%) 97 | 100 92 . 100 Level 1 2 | . 7 . . Level 2 . | . . . . Level 3 . | . . . . Level 4 . | . . . . Level 5 . | . . . . High Security . | . . . . Max Security . | . . . . Squads Dispatched 2 | . 2 . . Investigation 1 | . 1 . . Extermination . | . . . . Reinforcement 1 | . 1 . . Assault . | . . . . Garrison . | . . . . Intercept . | . . . . Searches Triggered . | . . . . Construction Impeded . | . . . . Haulers Reinforced . | . . . . Active Scanning Responses . | . . . . Cargo Convoy Interrupts . | . . . . Stealth | -11 -10 -10 -7 --------- Run | Yrd Mat Sub Rec Distress Signals . | . . . . Communications Jammed . | . . . . Distress Signals . | . . . . Times Spotted 26 | . 13 10 3 Peak Tracking Total 4 | . 4 2 1 Tactical Retreats 3 | . 2 1 . Traps | -11 -10 -10 -7 ------- Run | Yrd Mat Sub Rec Traps Triggered 1 | . 1 . . Indirectly . | . . . . Trap Hack Attempts . | . . . . Triggered . | . . . . Disarmed . | . . . . Reprogrammed . | . . . . Reused . | . . . . Traps Extracted . | . . . . Installed . | . . . . Triggered . | . . . . Machines | -11 -10 -10 -7 ---------- Run | Yrd Mat Sub Rec Machines Disabled . | . . . . Max in Single Turn . | . . . . Machines Repaired . | . . . . Machines Dismantled . | . . . . Machines Sabotaged . | . . . . Overloaded Fab Kills . | . . . . Hacking | -11 -10 -10 -7 --------- Run | Yrd Mat Sub Rec Machines Accessed 12 | . 1 . 11 Terminals 6 | . 1 . 5 Fabricators . | . . . . Repair Stations . | . . . . Recycling Units 6 | . . . 6 Scanalyzers . | . . . . Garrison Access . | . . . . Total Hacks 36 | . 6 . 30 Successful 15 | . 3 . 12 Failed 21 | . 3 . 18 Catastrophic 1 | . . . 1 Database Lockouts . | . . . . Manual 13 | . 5 . 8 Terminals 25 | . 6 . 19 Fabricators . | . . . . Repair Stations . | . . . . Recycling Units 11 | . . . 11 Scanalyzers . | . . . . Garrison Access . | . . . . Terminal Hacks 5 | . 2 . 3 Branch Access Points 1 | . . . 1 Dispatch Records 1 | . 1 . . Recall Reinforcements 1 | . 1 . . Zone Layout 2 | . . . 2 Fabricator Hacks . | . . . . Repair Station Hacks . | . . . . Recycling Unit Hacks 5 | . . . 5 Retrieve Components 5 | . . . 5 Scanalyzer . | . . . . Garrison Access Hacks . | . . . . Unauthorized Hacks 5 | . 1 . 4 Terminals 5 | . 1 . 4 Botnet 5 | . 1 . 4 Fabricators . | . . . . Repair Stations . | . . . . Recycling Units . | . . . . Scanalyzers . | . . . . Garrison Access . | . . . . Data Cores Recovered . | . . . . Used . | . . . . Hacking Detections 7 | . 1 . 6 Full Trace Events . | . . . . Feedback Events . | . . . . Feedback Blocked . | . . . . Robot Schematics Acquired . | . . . . Robots Built . | . . . . Authchips . | . . . . Time . | . . . . Total Robot Build Rating . | . . . . Part Schematics Acquired . | . . . . Parts Built . | . . . . Authchips . | . . . . Time . | . . . . Total Part Build Rating . | . . . . Parts Repaired . | . . . . Time . | . . . . Parts Recycled . | . . . . Recycled Matter . | . . . . Retrieved Matter . | . . . . Retrieved Components 8 | . . . 8 Parts Scanalyzed . | . . . . Part Schematics Acquired . | . . . . Parts Damaged . | . . . . Bothacking | -11 -10 -10 -7 ------------ Run | Yrd Mat Sub Rec Used RIF Installer . | . . . . Robots Hacked . | . . . . Non-combat . | . . . . Combat . | . . . . Robot Hacks Applied . | . . . . Relay Couplers Released . | . . . . Fabnet Peak Effective % . | . . . . Robots Rewired . | . . . . Allies Hacked . | . . . . Hacks Repelled . | . . . . Allies | -11 -10 -10 -7 -------- Run | Yrd Mat Sub Rec Total Allies . | . . . . Largest Group . | . . . . Highest-Rated Group . | . . . . Highest-Rated Ally . | . . . . Total Orders . | . . . . Ally Attacks . | . . . . Total Damage . | . . . . Kills . | . . . . Allies Corrupted . | . . . . Allies Melted . | . . . . Intel | -11 -10 -10 -7 ------- Run | Yrd Mat Sub Rec Robot Analysis Total . | . . . . Derelict Logs Recovered 1 | . . 1 . Drone Launches . | . . . . Drone Recoveries . | . . . . Exploration | -11 -10 -10 -7 ------------- Run | Yrd Mat Sub Rec Turns Passed 2861 | 46 357 1595 863 Spaces Moved 1664 | 33 151 903 577 Core 18 | 18 . . . Treads . | . . . . Legs 1350 | 15 151 903 281 Wheels 296 | . . . 296 Hover . | . . . . Flight . | . . . . Fastest Speed 50 | 50 120 120 100 Average Speed 147 | 101 120 160 136 Slowest Speed 260 | 120 120 260 190 Overloaded Moves . | . . . . Propulsion Burnouts . | . . . . Robots Hopped . | . . . . Cave-ins Triggered . | . . . . Exploration Rate (%) 45 | 3 27 56 96 Regions Visited 3 Branch Regions 2 Pre-discovered Areas . | . . . . Known Exits Taken 1 | . . 1 . Unknown Exits Taken 2 | 1 1 . . Scrap Searched 8 | . . 8 . Spaces Dug 16 | . . 16 . Terrain Destroyed 73 | . . 49 24 Melee . | . . . . Projectile 1 | . . . 1 AOE 72 | . . 49 23 Terrain Rammed . | . . . . Walls Destroyed . | . . . . Machines Disabled . | . . . . Actions | -11 -10 -10 -7 --------- Run | Yrd Mat Sub Rec Total 1962 | 45 285 993 639 Wait 140 | . 97 22 21 Move 1661 | 32 150 902 577 Hop . | . . . . Pick Up 38 | 8 7 11 12 Fast Attach . | . . . . Attach 19 | 5 3 7 4 Detach . | . . . . Swap 2 | . . 1 1 Drop 20 | . 1 8 11 Fire 78 | . 27 40 11 Melee . | . . . . Ram . | . . . . Kick . | . . . . Crush . | . . . . Escape Stasis . | . . . . Rewire 2 | . . . 2 Trap . | . . . . Miscellaneous 2 | . . 2 . Route ------- -11/Scrapyard -10/Materials (discovered 2 exits: [*Mat] / [*Sub]) -10/Subcaves (discovered 2 exits: [*Mat] / *Rec) -7/Recycling (discovered 1 exit: [*Fac]) History --------- Turn | Location | Event 13 | -11/Scrapyard | Discovered new exit (range 15) 47 | -11/Scrapyard | Entered Materials 304 | -10/Materials | Build established: Mutant 329 | -10/Materials | Discovered new exit (range 7) 388 | -10/Materials | Discovered new exit (range 11) 404 | -10/Materials | Entered Subcaves 1175 | -10/Subcaves | Core integrity fell below 50% 1529 | -10/Subcaves | Discovered new exit (range 9) 1619 | -10/Subcaves | Identified exit to Recycling 1976 | -10/Subcaves | Ambushed by Subdweller buried in earth 1999 | -10/Subcaves | Entered Recycling 2000 | -7/Recycling | Found Scrap Engine 2095 | -7/Recycling | Core integrity fell below 20% 2683 | -7/Recycling | Discovered new exit (range 12) 2862 | -7/Recycling | Destroyed by Y-54 Guardian with Gatling Laser Last Messages --------------- Retrieving 2 components... Med. Treads Adv. ECM Suite Arm. Scrap Engine consumes Med. Treads. Arm. Scrap Engine consumes Adv. Assault Cannon. Connecting with Recycling Unit... >>Retrieve(Components) Retrieving 2 components... Remote Datajack Powered Hammer EXIT=FOUND Connecting with Recycling Unit... >>Retrieve(Components) Retrieving 2 components... Coil Gun Adv. Signal Interpreter Dropped Flak Gun. Acquired Coil Gun. Arm. Scrap Engine consumes Flak Gun. Y-54 Guardian springs to life. Map ----- +----------------------------------------------------+ | ## #??# # # #??### #### | | ## #??# # # #??#!! #??? | | ########## #??##### ##### # #??#!! #??? | | ?????????# #??????###???# ######+###??#! #??? | | ###?????##+############?#####????# #????### #??? | | ####### #??????????# #?????## ##?? | | " + + """#??????????# #????### ##?? | | " # ##### """ """ ! Y"#??????????# #????# # #??? | | " # #???# """ """ """#??????????# #????# # ##?? | | # #???# """ """ #??????????# #????# # #?? | | " # #???# #??????????# ###### # ##?? | | " # #############+################ ######## #### | | " # % | | + | | " # | | " ###+#+#############################+##########"Y | | " #?# #?????????????????## ##?????#"" | | #?# #??###############?#! "" #??????### | | #?# #??# #?# Y" #????????? | | #?# #??# % ! #?# "" #????????? | | ###?########## #??# !! ### #????????? | | #?????????!#??##??# ! ## #????????? | | ########!!!### #####;#####+#+#+#### #?######## | | r Y #### """ #?# | | + """ #?#"" "" | | @ #### """ #?#"" "" | | ########! ####+#########+##+###?# """ #?#"T "" | | #?????????????????????# T #?# """ #?#"" | | #?????????????????????# """ #?# #?#"" | | #?????????????????????# """ #?# #?# | | #?????????????????????# """ #?# #?# | | #?????????????????????# #?#######?######## | | #?????????????????????# """ #????????????????? | | ##?????????????????????# """ #????????????????? | | ???????????????????????# """ #????????????????? | | ???????????????????????# #????????????????? | | ???????????????????????##########????????????????? | | ?????????????????????????????????????????????????? | | ?????????????????????????????????????????????????? | | ?????????????????????????????????????????????????? | | ?????????????????????????????????????????????????? | | ?????????????????????????????????????????????????? | | ?????????????????????????????????????????????????? | | ?????????????????????????????????????????????????? | | ?????????????????????????????????????????????????? | | ?????????????????????????????????????????????????? | | | | | | | | | +----------------------------------------------------+ Best States ------------- Heat Dissipation 25 Energy Generation 14 Energy Capacity 240 Matter Stores 300 Matter Capacity 300 Sight Range 21 Terrain Scan Density 10 Armor Coverage 800 Evasion (%) 55 Item Schematics ----------------- None Robot Schematics ------------------ None Fabricated ------------ Nothing Alien Tech Used ----------------- None Achievements -------------- None Challenges ------------ None Game ------ Seed WeaponsFieldEdition Manual? 0 Play Time 00:29:41 Cumulative 27.0 hours Start 2024.04.14 @ 16:06:16 End 2024.04.14 @ 16:39:02 Sessions 1 Manual Loads 0 Difficulty Rogue Special Mode None Game No. 24 Rogue 24 Adventurer 0 Explorer 0 Win Type - Total 0 Types 0/0/0/0/0/0/0/0/0 Lore% 29 Gallery% 21 Achievement% 25 Wizard Run 0 Options --------- Layout 1 ASCII 0 Keyboard 0 Movement Mouse Keybinds 0 Fullscreen 2 Font 20/SmallcapsGlow Map View 54x42 Zoom Use 0% Tactical HUD 0 Map Filters NONE Filters NONE Steam 1 RUN: fb70cd41-4d86-452c-a7a6-c90711cc5cfc